bitfinex/quotes_BTCUSD_20250711
["timestamp","ask_amount","ask_price","bid_price","bid_amount"]
[1752249503187,0.0621,116850.0,116840.0,0.81997147]
[1752249503395,0.002,116850.0,116840.0,0.81997147]
[1752249503602,0.01055732,116850.0,116840.0,0.81997147]
[1752249503800,0.27249004,116850.0,116840.0,0.10047136]
[1752249504007,0.15599288,116840.0,116820.0,0.87874011]
[1752249504211,0.0654415,116840.0,116830.0,0.08542993]
[1752249504441,0.3303596,116850.0,116840.0,0.00144137]
[1752249504637,0.53678867,116880.0,116840.0,0.72395148]
[1752249504841,0.02165781,116900.0,116870.0,0.71950011]
[1752249505071,0.008553,116910.0,116880.0,0.71950011]
[1752249505072,0.04277414,116910.0,116880.0,0.71950011]
[1752249505341,0.2481234,116920.0,116880.0,0.08843993]
[1752249505342,0.15932,116920.0,116880.0,0.08843993]
[1752249505562,0.16787234,116920.0,116900.0,0.71950011]
[1752249505771,0.17642475,116920.0,116900.0,0.71950011]
[1752249505969,0.00855307,116910.0,116900.0,0.01454085]
[1752249506174,0.0032,116910.0,116900.0,0.01454085]
[1752249506388,0.0032,116910.0,116900.0,0.01469083]
[1752249506787,0.003,116920.0,116900.0,0.73419094]
[1752249507010,0.00855227,116920.0,116910.0,0.73404096]
[1752249507476,0.00855227,116920.0,116910.0,0.01454085]
[1752249507896,0.1828094,116920.0,116910.0,0.01454085]
[1752249508108,0.0664,116920.0,116900.0,0.01469083]
[1752249508314,0.09205717,116920.0,116900.0,0.01469083]
[1752249508528,0.008,116910.0,116900.0,0.01569083]
[1752249508740,0.09205702,116920.0,116900.0,0.01469083]
[1752249509160,0.0764,116920.0,116910.0,0.001]
[1752249509370,0.44685974,116930.0,116900.0,0.72266009]
[1752249509539,0.44685974,116930.0,116910.0,0.01454085]
[1752249509540,0.43295586,116930.0,116910.0,0.01454085]
[1752249509753,0.42440425,116930.0,116910.0,0.01454085]
[1752249509955,0.43295579,116930.0,116910.0,0.01454085]
[1752249510155,0.007,116920.0,116910.0,0.01454085]
[1752249510334,0.007,116920.0,116910.0,0.90511272]
[1752249510535,0.007,116920.0,116910.0,1.05172096]
[1752249510743,0.007,116920.0,116910.0,0.33222085]
[1752249510950,0.0102,116920.0,116910.0,0.01454085]
[1752249511189,0.09208774,116920.0,116910.0,0.01454085]
[1752249511372,0.15858774,116920.0,116910.0,0.01454085]
[1752249511589,0.02705065,116920.0,116910.0,0.01454085]
[1752249511829,0.00251412,116920.0,116910.0,0.01454085]
[1752249512029,0.23137414,116930.0,116910.0,0.01554085]
[1752249512155,0.19571873,116930.0,116920.0,0.73404096]
[1752249512980,0.19494487,116930.0,116920.0,0.01454085]
[1752249513208,0.18639326,116930.0,116920.0,0.01454085]
[1752249513417,0.16239326,116930.0,116920.0,0.01454085]
[1752249513633,0.16239326,116930.0,116920.0,1.74245391]
[1752249513841,0.16239326,116930.0,116920.0,1.7403157]
[1752249514712,0.10239326,116930.0,116920.0,1.7403157]
[1752249515128,0.07839326,116930.0,116920.0,1.7403157]
[1752249515278,0.07669326,116930.0,116920.0,1.7403157]
[1752249515492,0.08769326,116930.0,116920.0,1.7413157]
[1752249515712,0.07669326,116930.0,116920.0,1.7403157]
[1752249515916,0.07209326,116930.0,116920.0,1.7403157]
[1752249516124,0.07709326,116930.0,116920.0,1.7413157]
[1752249516728,0.06476859,116930.0,116920.0,1.73276336]
[1752249516929,0.06844627,116960.0,116920.0,1.37565802]
[1752249517133,0.06844627,116960.0,116950.0,0.01454085]
[1752249517134,0.12274627,116960.0,116950.0,0.01454085]
[1752249517331,0.06074627,116960.0,116950.0,0.01454085]
[1752249517537,0.06074627,116960.0,116950.0,0.73404096]
[1752249517946,0.08639444,116960.0,116950.0,0.01454085]
[1752249518144,0.13984488,116960.0,116950.0,0.01454085]
[1752249518405,0.09889619,116960.0,116950.0,0.01454085]
[1752249518613,0.00014992,116960.0,116950.0,0.99353414]
[1752249518825,0.00314992,116960.0,116950.0,1.43585792]
[1752249519028,0.026048,117000.0,116980.0,0.01454085]
[1752249519229,0.00089963,117000.0,116990.0,1.05264096]
[1752249519399,0.02096255,117000.0,116990.0,0.01454085]
[1752249519552,0.08396255,117000.0,116990.0,0.01454085]
[1752249519753,0.2549033,117000.0,116990.0,0.01454085]
[1752249519959,0.68033323,117000.0,116990.0,0.01454085]
[1752249520373,0.270263,116980.0,116950.0,0.74524111]
[1752249520618,0.16204788,116980.0,116960.0,0.71950011]
[1752249520792,0.07661876,116970.0,116950.0,0.74524111]
[1752249520994,0.06807,116970.0,116950.0,0.74524111]
[1752249521197,0.1598,116980.0,116960.0,0.71950011]
[1752249521550,0.2617476,116960.0,116950.0,0.025741]
[1752249521687,0.25616811,116960.0,116950.0,0.025741]
[1752249521893,0.22366811,116960.0,116950.0,0.0001]
[1752249522096,0.30909804,116960.0,116950.0,0.0001]
[1752249522816,0.24500948,116960.0,116950.0,0.0001]
[1752249523032,0.03564875,116960.0,116950.0,0.72050011]
[1752249523247,0.01854941,116960.0,116950.0,0.72050011]
[1752249523466,0.01,116960.0,116950.0,0.72050011]
[1752249523692,0.03954788,116980.0,116950.0,0.80898004]
[1752249523915,0.0004,117000.0,116970.0,0.71950011]
[1752249524129,0.025651,116980.0,116970.0,0.08542993]
[1752249524341,0.00944612,117000.0,116970.0,1.12453004]
[1752249524548,0.00089963,117000.0,116980.0,0.71950011]
[1752249524976,0.00089963,117000.0,116990.0,0.01454085]
[1752249525410,0.00089963,117000.0,116990.0,0.73404096]
[1752249526022,0.00944598,117000.0,116990.0,0.01454085]
[1752249526309,0.0179924,117000.0,116990.0,0.01454085]
[1752249526471,0.19661402,116980.0,116950.0,0.32038]
[1752249526697,0.01709744,116970.0,116950.0,1.12531004]
[1752249526908,0.16212423,116980.0,116950.0,1.12531004]
[1752249527115,0.01709744,116970.0,116950.0,1.12531004]
[1752249527330,0.65066993,116990.0,116960.0,0.71950011]
[1752249527597,0.00089963,117000.0,116990.0,0.01454085]
[1752249527823,0.00089963,117000.0,116980.0,0.73404096]
[1752249528043,0.02653976,117000.0,116980.0,0.73404096]
[1752249528263,0.00854708,116990.0,116980.0,0.73404096]
[1752249528490,0.02653976,117000.0,116980.0,0.73404096]
[1752249528728,0.01799283,117000.0,116980.0,0.73404096]
[1752249528932,0.20047993,117000.0,116990.0,0.01564085]
[1752249529149,0.19747993,117000.0,116990.0,0.01464085]
[1752249529795,0.18893344,117000.0,116990.0,0.01464085]
[1752249530680,0.25360344,117000.0,116990.0,0.01464085]
[1752249530891,0.34003337,117000.0,116990.0,0.01464085]
[1752249531139,0.39048274,117000.0,116990.0,0.0001]
[1752249531377,0.34003337,117000.0,116990.0,0.0001]
[1752249532480,0.73003337,117000.0,116990.0,0.0001]
[1752249533576,6.49853348,117000.0,116990.0,1e-08]
[1752249533814,6.52614981,117000.0,116990.0,1e-08]
[1752249534031,5.77903337,117000.0,116990.0,1e-08]
[1752249534819,0.18809797,116960.0,116950.0,0.01464085]
[1752249535025,0.34697797,116960.0,116950.0,0.01464085]
[1752249535401,0.30368989,116960.0,116950.0,0.01464085]
[1752249535801,0.3006586,116960.0,116950.0,0.01464085]
[1752249536015,0.11431841,116960.0,116950.0,0.0001]
[1752249536224,0.3378143,116960.0,116950.0,0.0001]
[1752249536586,0.24014134,116960.0,116950.0,0.0001]
[1752249536755,0.28722436,116960.0,116950.0,0.0001]
[1752249536919,0.33543619,116960.0,116950.0,0.0001]
[1752249537126,0.40057787,116960.0,116950.0,0.0001]
[1752249537345,0.77748429,116960.0,116950.0,0.0001]
[1752249537573,0.73603556,116960.0,116950.0,0.0001]
[1752249537786,0.74458534,116960.0,116950.0,0.0001]
[1752249537999,0.42662834,116960.0,116950.0,0.0001]
[1752249538201,0.56205827,116960.0,116950.0,0.0001]
[1752249538425,0.45904887,116960.0,116950.0,0.0021]
[1752249539491,0.45904887,116960.0,116950.0,0.01664085]
[1752249540125,5.79904887,116960.0,116950.0,0.01664085]
[1752249540336,5.86144887,116960.0,116950.0,0.01648282]
[1752249540753,0.18909797,116960.0,116950.0,0.73598293]
[1752249540986,0.18909797,116960.0,116950.0,0.01648282]
[1752249541873,0.58395746,116960.0,116950.0,0.01648282]
[1752249542084,5.69998739,116960.0,116950.0,0.00194197]
[1752249542294,6.9091675,116960.0,116950.0,0.00194197]
[1752249542715,6.1377779,116960.0,116950.0,0.00194197]
[1752249543635,5.7977779,116960.0,116950.0,0.00194197]
[1752249543876,0.2745279,116960.0,116950.0,0.00194197]
[1752249544100,0.18909797,116960.0,116950.0,0.00194197]
[1752249544314,0.34793797,116960.0,116950.0,0.00194197]
[1752249544554,0.35090797,116960.0,116950.0,0.00194197]
[1752249544766,0.4363379,116960.0,116950.0,0.00194197]
[1752249545202,0.4363379,116960.0,116920.0,0.34]
[1752249545203,0.1796252,116910.0,116900.0,0.00144137]
[1752249545444,0.0171068,116910.0,116900.0,0.00159129]
[1752249545655,0.19673199,116910.0,116900.0,0.00464129]
[1752249546072,0.3473787,116910.0,116900.0,0.00464129]
[1752249546497,0.17105713,116920.0,116900.0,0.01918214]
[1752249546735,0.14394595,116920.0,116910.0,0.07999085]
[1752249546956,0.30310595,116920.0,116910.0,0.01454085]
[1752249547163,0.1796252,116910.0,116900.0,0.00159129]
[1752249547591,0.1796252,116910.0,116900.0,0.01613214]
[1752249548200,0.1806252,116910.0,116900.0,0.01813214]
[1752249548415,0.3396652,116910.0,116900.0,0.01813214]
[1752249548644,0.1771465,116910.0,116900.0,0.74070225]
[1752249548858,0.19773184,116910.0,116900.0,0.80640225]
[1752249549070,0.3481787,116910.0,116900.0,0.08690214]
[1752249549699,0.3481787,116910.0,116900.0,0.80640225]
[1752249549909,0.01810636,116910.0,116900.0,0.17233207]
[1752249550122,0.03521315,116910.0,116900.0,0.89183218]
[1752249550330,0.04376607,116910.0,116900.0,0.89183218]
[1752249550783,0.21483783,116910.0,116900.0,0.08383214]
[1752249550992,0.1891787,116910.0,116900.0,0.01813214]
[1752249551887,0.3478987,116910.0,116900.0,0.01813214]
[1752249552091,0.3478987,116910.0,116900.0,0.73763225]
[1752249552310,0.1891787,116910.0,116900.0,0.02120214]
[1752249553350,0.1891787,116910.0,116900.0,0.01813214]
[1752249554897,0.3476187,116910.0,116900.0,0.01813214]
[1752249555330,0.3475787,116910.0,116900.0,0.01813214]
[1752249555536,0.33802512,116910.0,116900.0,0.01813214]
[1752249556693,0.34108512,116910.0,116900.0,0.01813214]
[1752249556900,0.33794512,116910.0,116900.0,0.01813214]
[1752249557098,0.33790512,116910.0,116900.0,0.01813214]
[1752249558169,0.16572482,116910.0,116900.0,0.01813214]
[1752249558313,0.18283155,116910.0,116900.0,0.80350225]
[1752249558696,0.00855292,116910.0,116900.0,0.88893218]
[1752249558904,0.34632189,116920.0,116910.0,0.07734085]
[1752249559145,0.1967146,116920.0,116910.0,0.58934794]
[1752249559502,0.18816269,116920.0,116910.0,0.58627794]
[1752249559717,0.18816269,116920.0,116910.0,0.55517794]
[1752249559912,0.18816269,116920.0,116910.0,0.55824794]
[1752249560250,0.18916269,116920.0,116910.0,0.55824794]
[1752249560900,0.18916269,116920.0,116910.0,0.05031085]
[1752249561264,0.18916269,116920.0,116910.0,0.01554085]
[1752249561494,0.18916269,116920.0,116910.0,0.001]
[1752249561662,0.34692269,116920.0,116910.0,0.001]
[1752249562637,0.18916269,116920.0,116910.0,0.001]
[1752249562848,0.77537262,116920.0,116910.0,0.001]
[1752249563601,0.77537262,116920.0,116910.0,0.0011]
[1752249564003,0.61773262,116920.0,116910.0,0.0011]
[1752249564209,0.77525262,116920.0,116910.0,0.0011]
[1752249564634,0.80625262,116920.0,116910.0,0.0011]
[1752249564843,0.83765262,116920.0,116910.0,0.0011]
[1752249565236,0.68013262,116920.0,116910.0,0.0011]
[1752249565755,0.83741262,116920.0,116910.0,0.0011]
[1752249565946,1.28741262,116920.0,116910.0,0.0011]
[1752249566107,1.13013262,116920.0,116910.0,0.0011]
[1752249566306,1.28741262,116920.0,116910.0,0.0011]
[1752249566530,1.28655734,116920.0,116910.0,0.0011]
[1752249567365,0.88655734,116920.0,116910.0,0.0011]
[1752249567563,0.5196252,116910.0,116900.0,0.00159129]
[1752249567897,0.60819513,116910.0,116900.0,0.00159129]
[1752249568435,0.51962512,116910.0,116900.0,0.03379129]
[1752249568682,0.6764652,116910.0,116900.0,0.03686129]
[1752249568856,0.17875463,116920.0,116900.0,0.80498531]
[1752249569059,0.001,116910.0,116900.0,0.16776207]
[1752249569260,0.001,116910.0,116900.0,0.88734524]
[1752249569701,0.001,116910.0,116900.0,0.17083207]
[1752249569878,0.001,116910.0,116900.0,0.89041524]
[1752249570074,0.009553,116910.0,116900.0,0.89041524]
[1752249570278,0.00955292,116910.0,116900.0,0.89041524]
[1752249570589,0.01810599,116910.0,116900.0,0.89041524]
[1752249570835,0.19671542,116920.0,116910.0,0.01454085]
[1752249571038,0.18816257,116920.0,116910.0,0.79692402]
[1752249571241,0.18916257,116920.0,116910.0,0.79999402]
[1752249571385,0.18816257,116920.0,116910.0,0.08575612]
[1752249571578,0.18816257,116920.0,116910.0,0.80533929]
[1752249571579,0.17961001,116920.0,116910.0,0.80533929]
[1752249571992,0.17961001,116920.0,116910.0,0.08575612]
[1752249572212,0.17961001,116920.0,116910.0,0.02295612]
[1752249572483,0.18061001,116920.0,116910.0,0.05545612]
[1752249572638,0.18916257,116920.0,116910.0,0.08675612]
[1752249572845,0.18916257,116920.0,116910.0,0.05545612]
[1752249573029,0.18916257,116920.0,116910.0,0.08735612]
[1752249573229,0.19016257,116920.0,116910.0,0.80693929]
[1752249573664,0.19016257,116920.0,116910.0,0.08735612]
[1752249573873,0.19016257,116920.0,116910.0,0.80693929]
[1752249574099,0.18161001,116920.0,116910.0,0.02088604]
[1752249574500,0.18161001,116920.0,116910.0,0.02088629]
[1752249574698,0.71399526,116920.0,116910.0,0.00634544]
[1752249574907,0.68111001,116920.0,116910.0,0.00634544]
[1752249575100,0.76653994,116920.0,116910.0,0.00634544]
[1752249575320,0.83163994,116920.0,116910.0,0.00634544]
[1752249575523,1.13163994,116920.0,116910.0,0.00634544]
[1752249575952,0.87706987,116920.0,116910.0,0.00634544]
[1752249576886,0.1796252,116910.0,116900.0,0.00159129]
[1752249577174,0.26819513,116910.0,116900.0,0.00159129]
[1752249578034,0.26919513,116910.0,116900.0,0.00359129]
[1752249580822,0.17968667,116870.0,116860.0,0.0306]
[1752249581037,0.17968667,116870.0,116860.0,0.03391998]
[1752249581038,0.33528667,116870.0,116860.0,0.03391998]
[1752249581247,0.33528667,116870.0,116860.0,0.40421998]
[1752249581664,0.33528667,116870.0,116860.0,0.9138375]
[1752249581665,0.18824296,116870.0,116860.0,0.9138375]
[1752249581861,0.17967101,116880.0,116870.0,0.4021]
[1752249582065,0.17111112,116900.0,116870.0,0.93821745]
[1752249582276,0.19677261,116900.0,116890.0,0.91171752]
[1752249582479,0.20532671,116900.0,116890.0,1.00031745]
[1752249582693,0.20532729,116900.0,116890.0,1.00031745]
[1752249582899,0.18821946,116900.0,116890.0,1.00031745]
[1752249583106,0.17966536,116900.0,116890.0,1.00031745]
[1752249583312,0.17966536,116900.0,116890.0,0.49069993]
[1752249583739,0.18166536,116900.0,116890.0,0.37617]
[1752249584395,0.18166536,116900.0,116890.0,0.34417]
[1752249584624,0.18266536,116900.0,116890.0,0.001]
[1752249584778,0.18266536,116900.0,116890.0,0.00417]
[1752249584986,0.33806536,116900.0,116890.0,0.06837]
[1752249585192,0.33806536,116900.0,116890.0,0.00427]
[1752249585710,0.33798536,116900.0,116890.0,0.54478752]
[1752249586434,0.33798536,116900.0,116890.0,0.03517]
[1752249586796,0.17408639,116900.0,116890.0,0.57618752]
[1752249586996,0.19974831,116900.0,116890.0,0.06657]
[1752249587257,0.19119487,116900.0,116890.0,0.57618752]
[1752249587819,0.19119487,116900.0,116890.0,0.91618752]
[1752249588378,0.19119487,116900.0,116890.0,0.40657]
[1752249588580,0.19119487,116900.0,116890.0,0.37517]
[1752249588961,0.19119487,116900.0,116890.0,0.88478752]
[1752249589162,0.19119487,116900.0,116890.0,0.91618752]
[1752249590922,0.18093002,116900.0,116890.0,0.92153379]
[1752249591128,0.17066532,116900.0,116890.0,0.92153379]
[1752249591658,0.17066532,116900.0,116890.0,0.41191627]
[1752249591900,0.17066532,116900.0,116890.0,0.92153379]
[1752249592105,0.17066532,116900.0,116890.0,0.92153371]
[1752249592317,0.17066532,116900.0,116890.0,1.00696364]
[1752249592489,0.19674817,116900.0,116890.0,1.00696364]
[1752249592686,0.20530248,116900.0,116890.0,1.00696364]
[1752249592889,0.19674875,116900.0,116890.0,1.00696364]
[1752249593518,0.18819473,116900.0,116890.0,1.00696364]
[1752249593727,0.18819473,116900.0,116890.0,1.16204364]
[1752249594076,0.17964063,116900.0,116890.0,1.16204364]
[1752249594714,0.01710819,116900.0,116890.0,1.16204364]
[1752249594929,0.01710804,116900.0,116890.0,1.16204364]
[1752249595131,0.19674845,116900.0,116890.0,1.16204364]
[1752249595334,0.01710782,116900.0,116890.0,1.16204364]
[1752249595588,0.18819421,116900.0,116890.0,0.65242612]
[1752249595747,0.19674845,116900.0,116890.0,1.16204364]
[1752249596003,0.19674845,116900.0,116890.0,0.65242612]
[1752249596254,0.01710782,116900.0,116890.0,1.16204364]
[1752249596484,0.01710782,116900.0,116890.0,0.65242612]
[1752249596690,0.18819421,116900.0,116890.0,1.16204364]
[1752249596867,0.19674838,116900.0,116890.0,1.16104364]
[1752249597263,0.19674838,116900.0,116890.0,0.65142612]
[1752249597475,0.19674838,116900.0,116890.0,1.16104364]
[1752249597676,0.02566199,116900.0,116890.0,1.16104364]
[1752249597916,0.03421623,116900.0,116890.0,1.16104364]
[1752249598568,0.1881787,116910.0,116890.0,1.16104364]
[1752249598734,0.00855314,116910.0,116900.0,0.99764745]
[1752249598958,0.02565965,116910.0,116900.0,1.00616364]
[1752249599109,0.0427666,116910.0,116900.0,1.00556364]
[1752249599634,0.02565965,116910.0,116900.0,1.00556364]
[1752249599835,0.21383836,116910.0,116900.0,1.00556364]
[1752249600004,0.01710666,116910.0,116900.0,1.00571362]
[1752249600210,0.17105723,116920.0,116900.0,1.00571362]
[1752249600807,0.001,116910.0,116900.0,0.93519743]
[1752249601053,0.001,116910.0,116900.0,1.47581495]
[1752249601292,0.17112514,116950.0,116930.0,0.54061752]
[1752249601525,0.17112514,116950.0,116930.0,0.54596256]
[1752249601738,0.17112514,116950.0,116930.0,0.54913256]
[1752249601960,0.17112514,116950.0,116930.0,0.00534504]
[1752249602158,0.17426514,116950.0,116930.0,0.00534504]
[1752249602767,0.17112514,116950.0,116930.0,0.00534504]
[1752249603195,0.33092835,116950.0,116930.0,0.00534504]
[1752249603410,0.33192835,116950.0,116930.0,0.00534504]
[1752249603809,0.171029,116940.0,116930.0,0.00534504]
[1752249605201,0.17959404,116930.0,116920.0,0.85326752]
[1752249605406,0.1710425,116930.0,116920.0,0.97704187]
[1752249605612,0.17212514,116950.0,116920.0,0.97704187]
[1752249605814,0.01710095,116950.0,116940.0,0.50961752]
[1752249606088,0.1855541,116950.0,116940.0,0.31859442]
[1752249606217,0.17101325,116950.0,116940.0,0.31542442]
[1752249606420,0.1855541,116950.0,116940.0,0.00534442]
[1752249607012,0.1710987,116950.0,116940.0,0.00534442]
[1752249608435,0.5582854,116950.0,116940.0,0.00544442]
[1752249608686,0.5152387,116950.0,116940.0,0.00544442]
[1752249609115,0.52977955,116950.0,116940.0,0.00544442]
[1752249609311,0.52877955,116950.0,116940.0,0.00544442]
[1752249609448,1.17524334,116950.0,116940.0,0.00544442]
[1752249609653,0.52556872,116940.0,116890.0,0.03405]
[1752249609970,1.10321203,116900.0,116890.0,0.08552993]
[1752249610176,0.75172451,116900.0,116890.0,0.0001]
[1752249610374,6.27588288,116900.0,116890.0,0.0001]
[1752249610762,0.52822671,116880.0,116870.0,0.025657]
[1752249610961,1.31011912,116880.0,116870.0,0.025657]
[1752249611194,1.39867905,116880.0,116870.0,0.025657]
[1752249611396,6.36074501,116880.0,116870.0,0.02580698]
[1752249611856,0.19422752,116870.0,116860.0,0.15366614]
[1752249612027,5.77007504,116870.0,116860.0,0.15366614]
[1752249612225,5.85550497,116870.0,116860.0,0.15366614]
[1752249612444,5.9409349,116870.0,116860.0,0.15366614]
[1752249612795,5.93237854,116870.0,116840.0,0.19963598]
[1752249612996,0.54281589,116850.0,116840.0,0.19972148]
[1752249613437,0.69797589,116850.0,116840.0,0.19972148]
[1752249613641,0.54594589,116850.0,116840.0,0.19972148]
[1752249613843,0.20281589,116850.0,116840.0,0.709339]
[1752249614045,0.00855695,116860.0,116840.0,0.744889]
[1752249614218,0.01711236,116870.0,116850.0,0.57726752]
[1752249614424,0.0256688,116870.0,116860.0,0.54516752]
[1752249614652,0.19224304,116870.0,116860.0,0.06865]
[1752249614884,0.01711236,116870.0,116860.0,0.57726752]
[1752249615088,0.01711192,116870.0,116860.0,0.78766693]
[1752249615287,0.01711178,116870.0,116860.0,1.02893686]
[1752249615493,0.04277353,116880.0,116870.0,0.0635]
[1752249615623,0.04277346,116880.0,116870.0,0.87209686]
[1752249615829,0.05988435,116880.0,116870.0,0.87209686]
[1752249616070,0.23100002,116880.0,116870.0,0.87209686]
[1752249616269,0.21388927,116880.0,116870.0,0.87209686]
[1752249616469,0.2224449,116880.0,116870.0,0.15207993]
[1752249616676,0.21388971,116880.0,116870.0,0.15207993]
[1752249616832,0.17968667,116870.0,116860.0,0.001]
[1752249617191,0.17968667,116870.0,116860.0,0.08642993]
[1752249617504,0.17968667,116870.0,116860.0,0.001]
[1752249617695,0.17968667,116870.0,116860.0,0.002]
[1752249618672,0.17968667,116870.0,116860.0,0.00515]
[1752249618898,0.16427629,116870.0,116860.0,0.84309686]
[1752249619102,0.20533466,116890.0,116870.0,0.0332]
[1752249619324,0.025666,116890.0,116880.0,0.78571693]
[1752249619513,0.025666,116890.0,116880.0,0.06885]
[1752249619886,0.17274636,116910.0,116880.0,0.15427993]
[1752249620149,0.02567,116900.0,116880.0,0.87429686]
[1752249620375,0.02567,116900.0,116890.0,0.87229686]
[1752249620580,0.15572,116910.0,116890.0,1.05195279]
[1752249620796,0.15568,116920.0,116890.0,1.05735784]
[1752249620983,0.09425127,116930.0,116900.0,0.20603569]
[1752249621196,0.06859608,116930.0,116900.0,1.02003679]
[1752249621403,0.06859608,116930.0,116900.0,1.04338255]
[1752249621404,0.025671,116910.0,116900.0,1.04338255]
[1752249621611,0.00014981,116930.0,116900.0,1.21613151]
[1752249621820,0.00014981,116930.0,116920.0,0.72001693]
[1752249622043,0.00014981,116930.0,116920.0,0.75181693]
[1752249622275,0.00214981,116930.0,116920.0,0.03495]
[1752249622529,0.01925288,116930.0,116920.0,0.00315]
[1752249622761,0.00855292,116910.0,116900.0,0.03595]
[1752249622975,0.17278476,116920.0,116900.0,0.12037993]
[1752249623211,0.01454085,116920.0,116910.0,0.00315]
[1752249623441,0.01454085,116920.0,116910.0,0.72316693]
[1752249623661,0.15598981,116930.0,116910.0,1.05222013]
[1752249623893,0.00014981,116930.0,116920.0,0.00315]
[1752249624119,0.00014981,116930.0,116920.0,0.72316693]
[1752249624349,0.00214981,116930.0,116920.0,0.75726693]
[1752249624587,0.04234615,116930.0,116920.0,0.03725]
[1752249624822,0.01469066,116930.0,116920.0,0.00315]
[1752249625063,0.03179395,116930.0,116920.0,0.00315]
[1752249625286,0.20383688,116930.0,116920.0,0.00315]
[1752249625499,0.21138893,116930.0,116920.0,0.00315]
[1752249625713,0.01469066,116930.0,116920.0,0.00315]
[1752249625934,0.0242422,116930.0,116910.0,0.11070986]
[1752249626150,0.00970135,116930.0,116910.0,0.14380986]
[1752249626624,0.00114981,116930.0,116910.0,1.04345096]
[1752249626834,0.00114981,116930.0,116920.0,0.75311693]
[1752249627050,0.00970142,116930.0,116920.0,0.75311693]
[1752249627265,0.18929575,116930.0,116920.0,0.0331]
[1752249627479,0.0171049,116920.0,116910.0,0.27536993]
[1752249627723,0.35854318,116920.0,116910.0,0.001]
[1752249627927,0.04875095,116920.0,116910.0,0.00415]
[1752249628129,0.0316459,116920.0,116910.0,0.00315]
[1752249628336,0.04019817,116920.0,116900.0,0.75001693]
[1752249628472,0.21980793,116920.0,116910.0,0.002]
[1752249628681,0.54583332,116920.0,116910.0,0.002]
[1752249628882,0.57953332,116920.0,116910.0,0.002]
[1752249629095,0.73340952,116920.0,116910.0,0.002]
[1752249629494,0.73440952,116920.0,116910.0,0.002]
[1752249629913,0.66596325,116920.0,116910.0,0.002]
[1752249630326,0.72315016,116920.0,116910.0,0.002]
[1752249630884,0.72115016,116920.0,116910.0,0.002]
[1752249631090,0.66396325,116920.0,116910.0,0.002]
[1752249631293,0.69874332,116920.0,116910.0,0.002]
[1752249631502,0.35878332,116920.0,116910.0,0.002]
[1752249631640,0.19971532,116920.0,116910.0,0.003]
[1752249631848,0.18473761,116920.0,116910.0,0.00615]
[1752249632050,0.35579474,116920.0,116910.0,0.00615]
[1752249632257,0.35579474,116920.0,116910.0,0.00415]
[1752249633109,0.19971444,116920.0,116910.0,0.75446693]
[1752249633315,0.19971481,116920.0,116910.0,0.03445]
[1752249633883,0.02010483,116920.0,116910.0,0.03445]
[1752249634148,0.01155234,116920.0,116910.0,0.03445]
[1752249634353,0.01155234,116920.0,116910.0,0.001]
[1752249634354,1.37083926,116920.0,116910.0,0.001]
[1752249634559,6.37083926,116920.0,116910.0,0.001]
[1752249634788,0.65082233,116920.0,116910.0,0.001]
[1752249634952,0.77568233,116920.0,116910.0,0.001]
[1752249635196,0.2168264,116920.0,116910.0,0.002]
[1752249635403,0.01155234,116920.0,116910.0,0.03515]
[1752249635604,0.19116233,116920.0,116910.0,0.03515]
[1752249635754,0.02865732,116920.0,116910.0,0.03415]
[1752249635958,0.01155219,116920.0,116910.0,0.03415]
[1752249636173,0.01255219,116920.0,116910.0,0.03415]
[1752249636376,0.0211046,116920.0,116910.0,0.03415]
[1752249636576,0.004,116920.0,116910.0,0.03415]
[1752249636799,0.004,116920.0,116910.0,0.87159686]
[1752249637155,0.004,116920.0,116910.0,1.04266862]
[1752249637359,0.004,116920.0,116910.0,0.15157993]
[1752249637641,0.004,116920.0,116910.0,0.30733993]
[1752249639095,0.004,116920.0,116910.0,1.02735686]
[1752249639643,0.004,116920.0,116910.0,0.87159686]
[1752249639838,0.01155234,116920.0,116910.0,1.02707686]
[1752249640088,0.01155234,116920.0,116910.0,0.30705993]
[1752249640317,0.19971481,116920.0,116910.0,0.18963]
[1752249640447,0.19971481,116920.0,116910.0,0.03315]
[1752249640448,0.03421053,116920.0,116910.0,0.03315]
[1752249640651,0.00855292,116910.0,116900.0,0.75281693]
[1752249640859,0.00855292,116910.0,116900.0,0.99649686]
[1752249641161,0.17119269,116930.0,116910.0,0.0328]
[1752249641162,0.18829671,116930.0,116910.0,0.0328]
[1752249641372,0.001,116920.0,116910.0,0.08642993]
[1752249641613,0.001,116920.0,116910.0,0.80644686]
[1752249641866,0.001,116920.0,116910.0,0.83864686]
[1752249642077,0.001,116920.0,116910.0,0.87357686]
[1752249642629,0.001,116920.0,116910.0,1.06175528]
[1752249642831,0.001,116920.0,116910.0,0.87257686]
[1752249643069,0.001,116920.0,116910.0,0.15255993]
[1752249643268,0.001,116920.0,116910.0,0.15469832]
[1752249643582,0.001,116920.0,116910.0,0.15255993]
[1752249644099,0.001,116920.0,116910.0,0.15555993]
[1752249644302,0.001,116920.0,116910.0,0.08225515]
[1752249644659,0.001,116920.0,116910.0,0.09080873]
[1752249644872,0.001,116920.0,116910.0,0.27043393]
[1752249645078,0.001,116920.0,116910.0,0.28754029]
[1752249645422,0.00014981,116930.0,116920.0,0.03985285]
[1752249645637,0.00014981,116930.0,116920.0,1.18359955]
[1752249645843,0.00014981,116930.0,116920.0,1.19215204]
[1752249646043,0.00014981,116930.0,116920.0,0.30771993]
[1752249646172,0.00014981,116930.0,116920.0,0.44647706]
[1752249646376,0.00014981,116930.0,116920.0,0.45502984]
[1752249646583,0.00014981,116930.0,116920.0,0.45602984]
[1752249646802,0.00014981,116930.0,116920.0,1.17604684]
[1752249647162,0.00014981,116930.0,116920.0,1.20158452]
[1752249647366,0.00014981,116930.0,116920.0,1.23428452]
[1752249647693,0.00114981,116930.0,116920.0,1.23528452]
[1752249648439,0.00014981,116930.0,116920.0,1.23428452]
[1752249648794,0.00114981,116930.0,116920.0,1.23728452]
[1752249648991,0.00114981,116930.0,116920.0,1.23628452]
[1752249649248,0.00114981,116930.0,116920.0,1.23828452]
[1752249649983,0.00114981,116930.0,116920.0,0.51826759]
[1752249650118,0.00114981,116930.0,116920.0,1.23828452]
[1752249651708,0.00014981,116930.0,116920.0,1.23528452]
[1752249651877,0.00114981,116930.0,116920.0,1.23828452]
[1752249652111,0.00014981,116930.0,116920.0,1.23328452]
[1752249652405,0.00014981,116930.0,116920.0,1.57628452]
[1752249652609,0.00114981,116930.0,116920.0,1.58028452]
[1752249652808,0.00114981,116930.0,116920.0,1.57728452]
[1752249653226,0.00114981,116930.0,116920.0,1.58128452]
[1752249654228,0.00018144,116930.0,116920.0,1.58128452]
[1752249655017,0.00018144,116930.0,116920.0,1.58101787]
[1752249656286,0.00018144,116930.0,116920.0,1.68101787]
[1752249657710,0.07302712,116970.0,116960.0,0.89101556]